Cogmind - Beta 9.4 *** ADVENTURER MODE // 2020.07.25 @ 21:15:16 Player: Scyralis Result: Self-destructed Performance ------------- Evolutions (3) 1500 Regions Visited (4) 800 Robots Destroyed (56) 280 Value Destroyed (1192) 1192 Prototype IDs (2) 40 Alien Tech Used (0) 0 Bonus (0) 0 TOTAL SCORE: 3812 Bonus ------- None Cogmind --------- Core Integrity 643/700 Matter 252/300 Energy 431/470 System Corruption 2% Temperature Cool (6) Movement Walking (150) Ox1 Location -7/Factory Parts ------- > --- POWER (2) -------- Cooled Ion Engine Improved Deuterium Engine > --- PROPULSION (3) --- Aluminum Leg Aluminum Leg Carbon-fiber Leg > --- UTILITY (6) ------ High-capacity Storage Unit Kinecellerator Maneuvering Thrusters Improved Light Armor Plating Shield Generator > --- WEAPON (2) ------- Heavy Assault Rifle Autogun > --- INVENTORY (12) --- Structural Scanner Visual Processing Unit Transport Network Coupler Recoil Stabilizer Peak State ------------ > --- POWER ------------ Cooled Ion Engine Improved Deuterium Engine > --- PROPULSION ------- Aluminum Leg Aluminum Leg Carbon-fiber Leg > --- UTILITY ---------- Large Storage Unit Compact Matter Pod Kinecellerator Maneuvering Thrusters Improved Light Armor Plating Shield Generator > --- WEAPON ----------- Heavy Assault Rifle Autogun > --- INVENTORY -------- Structural Scanner Visual Processing Unit Transport Network Coupler Recoil Stabilizer [Rating: 32] Favorites ----------- Power Cooled Ion Engine Engine Cooled Ion Engine Propulsion Aluminum Leg Leg Aluminum Leg Utility Large Storage Unit Device Improved Terrain Scanner Storage Large Storage Unit Processor Seismic Analyzer Protection Improved Light Armor Plating Weapon Autogun Ballistic Gun Autogun Build | -11 -10 -9 -8 -7 ------- Run | Scr Mat Mat Mat Fac Slots Evolved 6 | . . 2 2 2 Power 1 | . . . . 1 Propulsion 1 | . . . . 1 Utility 4 | . . 2 2 . Weapon . | . . . . . Parts Attached 31 | 8 . 11 7 5 Power 5 | 2 . 2 . 1 Engine 5 | 2 . 2 . 1 Core . | . . . . . Reactor . | . . . . . Propulsion 7 | 2 . 3 1 1 Treads . | . . . . . Leg 7 | 2 . 3 1 1 Wheel . | . . . . . Hover . | . . . . . Flight . | . . . . . Utility 14 | 2 . 3 6 3 Device 7 | 1 . 1 4 1 Storage 5 | . . 2 2 1 Processor 1 | 1 . . . . Hackware . | . . . . . Protection 1 | . . . . 1 Artifact . | . . . . . Weapon 5 | 2 . 3 . . Energy Gun . | . . . . . Energy Cannon . | . . . . . Ballistic Gun 5 | 2 . 3 . . Ballistic Cannon . | . . . . . Launcher . | . . . . . Special Weapon . | . . . . . Impact Weapon . | . . . . . Slashing Weapon . | . . . . . Piercing Weapon . | . . . . . Special Melee Weapon . | . . . . . Unidentified Prototypes . | . . . . . Parts Lost 2 | . . . . 2 Power . | . . . . . Propulsion . | . . . . . Utility 2 | . . . . 2 Weapon . | . . . . . Highest Loss Streak 1 | . . . . 1 Average Slot Usage (%) 97 | . 100 99 99 90 Engine 11 | . 14 11 9 12 Leg 19 | . 28 22 17 16 Device 24 | . 14 22 31 24 Storage 12 | . . 11 18 15 Processor 6 | . 14 11 4 . Protection 1 | . . . . 5 Ballistic Gun 19 | . 28 21 18 15 Naked Turns . | . . . . . Heaviest Build 67 | 10 10 32 35 67 Greatest Support 35 | 20 20 20 26 35 Greatest Overweight (x) 2 | 2 . 1 1 2 Average Overweight (x) . | . . 1 1 1 Largest Inventory Capacity 12 | 4 4 10 10 12 Average Capacity 8 | 4 4 10 10 10 Most Carried 5 | 4 4 4 5 5 Average Carried 2 | . 2 2 3 4 Final Capacity 12 | 4 4 10 10 12 Final Carried 4 | . 4 4 4 4 Class Distribution -------------------- 37% | Scavenger-Mutant 30% | Scavenger-Skirmisher 22% | Mutant 9% | Skirmisher Dominant Class ---------------- Mutant | -10/Materials Scavenger-Skirmisher | -9/Materials Scavenger-Skirmisher | -8/Materials Scavenger-Mutant | -7/Factory Resources | -11 -10 -9 -8 -7 ----------- Run | Scr Mat Mat Mat Fac Matter Collected 1375 | 364 84 326 386 215 Remotely 113 | . . . 113 . Salvage Created 1915 | 207 143 579 403 583 Parts 146 | 22 14 38 43 29 Haulers Intercepted 5 | . 1 1 2 1 Recyclers Shooed 1 | . . . 1 . Parts Field Recycled . | . . . . . Retrieved Matter . | . . . . . Parts Self-Destructed . | . . . . . Prevented . | . . . . . Kills | -11 -10 -9 -8 -7 ------- Run | Scr Mat Mat Mat Fac Combat Hostiles Destroyed 30 | . 3 11 7 9 Guns 30 | . 3 11 7 9 Classes Destroyed 9 | 3 3 2 1 . Worker 5 | 2 . 1 . 2 Builder 4 | . . . 3 1 Tunneler 6 | 5 . . 1 . Hauler 5 | . 1 1 2 1 Recycler 1 | 1 . . . . Watcher 5 | . 2 2 1 . Swarmer 8 | . 3 . 4 1 Grunt 19 | . . 10 2 7 Sentry 3 | . . 1 1 1 Best Kill Streak 9 | 8 3 9 6 9 Combat Bots Only 8 | . 3 8 4 7 Max Kills in Single Turn 2 | 1 1 1 2 2 Gunslinging 1 | . . . 1 1 Exploded . | . . . . . Melee . | . . . . . Uniques/NPCs Destroyed . | . . . . . Combat | -11 -10 -9 -8 -7 -------- Run | Scr Mat Mat Mat Fac Damage Taken 1175 | . 95 261 258 561 Core 165 | . 5 59 44 57 Absorbed by Shields 235 | . . . 20 215 Core Remaining (%) 93 | 100 98 85 92 . Volleys Fired 136 | 14 14 31 39 38 Largest 2 | 2 2 2 2 2 Hottest 46 | 40 40 46 46 46 Shots Fired 272 | 28 28 62 78 76 Gun 272 | 28 28 62 78 76 Cannon . | . . . . . Launcher . | . . . . . Special . | . . . . . Kinetic 272 | 28 28 62 78 76 Thermal . | . . . . . Explosive . | . . . . . Electromagnetic . | . . . . . Robot Hit Streak 30 | 9 8 14 13 30 Robot Miss Streak 3 | 2 2 1 1 3 Penetration Max . | . . . . . Secondary Targets 7 | . 1 . 2 4 Max Gunslinging Chain 1 | . 1 . 1 1 Shots Hit Robots 220 | 23 15 52 64 66 Core Hits 85 | 9 8 21 21 26 Critical Hits . | . . . . . Critical Kills . | . . . . . Critical Parts Destroyed . | . . . . . Melee Attacks . | . . . . . Impact . | . . . . . Slashing . | . . . . . Piercing . | . . . . . Sneak Attacks . | . . . . . Combat Hostiles . | . . . . . Follow-up Attacks . | . . . . . Damage Inflicted 3236 | 308 172 715 956 1085 Guns 3236 | 308 172 715 956 1085 Cannons . | . . . . . Explosions . | . . . . . Melee . | . . . . . Ramming . | . . . . . Kinetic 3236 | 308 172 715 956 1085 Thermal . | . . . . . Explosive . | . . . . . Electromagnetic . | . . . . . Impact . | . . . . . Slashing . | . . . . . Piercing . | . . . . . Highest Corruption 2 | . . . . 2 Average Corruption 2 | . . . . 2 Corruption Purged . | . . . . . Overload Shots . | . . . . . Overflow Damage . | . . . . . Projectiles . | . . . . . Explosions . | . . . . . Melee . | . . . . . Knockbacks . | . . . . . Impact . | . . . . . Kinetic . | . . . . . Secondary . | . . . . . Self-Inflicted Damage . | . . . . . Shots . | . . . . . Rammed . | . . . . . Targets Rammed . | . . . . . Kicked . | . . . . . Crushed . | . . . . . Highest Temperature 68 | . . 15 4 68 Average Temperature 20 | . . 8 4 23 Received Heat Transfer 529 | . . 168 81 280 Siege Activations . | . . . . . Robots Corrupted . | . . . . . Combat Hostiles . | . . . . . Parts Fried . | . . . . . Impact Corruptions . | . . . . . Robots Melted . | . . . . . Combat Hostiles . | . . . . . Parts Melted . | . . . . . Heat Transferred . | . . . . . Parts Sabotaged . | . . . . . Parts Stolen . | . . . . . Parts Stripped . | . . . . . Power Chain Reactions . | . . . . . Missiles Intercepted . | . . . . . Alert | -11 -10 -9 -8 -7 ------- Run | Scr Mat Mat Mat Fac Peak Influence 358 | 40 106 358 305 288 Average Influence 132 | 16 44 170 171 119 Maximum Alert Level 1 | . . 1 1 1 Low Security (%) 70 | 100 100 56 61 74 Level 1 29 | . . 43 38 25 Level 2 . | . . . . . Level 3 . | . . . . . Level 4 . | . . . . . Level 5 . | . . . . . High Security . | . . . . . Max Security . | . . . . . Squads Dispatched 7 | . 1 2 1 3 Investigation 2 | . 1 1 . . Extermination . | . . . . . Reinforcement 2 | . . 1 . 1 Assault . | . . . . . Garrison 3 | . . . 1 2 Intercept . | . . . . . Construction Impeded . | . . . . . Haulers Reinforced 1 | . . . . 1 Stealth | -11 -10 -9 -8 -7 --------- Run | Scr Mat Mat Mat Fac Distress Signals 3 | . 1 1 1 . Communications Jammed . | . . . . . Distress Signals . | . . . . . Times Spotted 39 | . 5 11 10 13 Peak Tracking Total 6 | . 5 4 5 6 Tactical Retreats . | . . . . . Traps | -11 -10 -9 -8 -7 ------- Run | Scr Mat Mat Mat Fac Traps Triggered 8 | . 3 1 3 1 Indirectly . | . . . . . Trap Hack Attempts . | . . . . . Triggered . | . . . . . Disarmed . | . . . . . Reprogrammed . | . . . . . Reused . | . . . . . Traps Extracted . | . . . . . Installed . | . . . . . Triggered . | . . . . . Machines | -11 -10 -9 -8 -7 ---------- Run | Scr Mat Mat Mat Fac Machines Disabled . | . . . . . Max in Single Turn . | . . . . . Machines Sabotaged . | . . . . . Garrisons Compromised . | . . . . . Overloaded Fab Kills . | . . . . . Fab Network Shutdowns . | . . . . . Hacking | -11 -10 -9 -8 -7 --------- Run | Scr Mat Mat Mat Fac Machines Accessed 8 | . 2 3 3 . Terminals 3 | . 1 1 1 . Fabricators . | . . . . . Repair Stations 2 | . . 1 1 . Recycling Units 1 | . 1 . . . Scanalyzers 2 | . . 1 1 . Garrison Access . | . . . . . Total Hacks 22 | . 5 10 7 . Successful 18 | . 4 7 7 . Failed 4 | . 1 3 . . Catastrophic . | . . . . . Database Lockouts . | . . . . . Manual . | . . . . . Terminals 9 | . 3 3 3 . Fabricators . | . . . . . Repair Stations 5 | . . 3 2 . Recycling Units 2 | . 2 . . . Scanalyzers 6 | . . 4 2 . Garrison Access . | . . . . . Terminal Hacks 6 | . 2 1 3 . Record 3 | . . . 3 . Robot Analysis 1 | . . 1 . . Prototype ID Bank 1 | . 1 . . . Unreport Threat 1 | . 1 . . . Fabricator Hacks . | . . . . . Repair Station Hacks 4 | . . 2 2 . Scan Component 2 | . . 1 1 . Repair 2 | . . 1 1 . Recycling Unit Hacks 2 | . 2 . . . Report Inventory 1 | . 1 . . . Retrieve Components 1 | . 1 . . . Scanalyzer 6 | . . 4 2 . Insert Component 3 | . . 2 1 . Analyze 3 | . . 2 1 . Garrison Access Hacks . | . . . . . Unauthorized Hacks . | . . . . . Terminals . | . . . . . Fabricators . | . . . . . Repair Stations . | . . . . . Recycling Units . | . . . . . Scanalyzers . | . . . . . Garrison Access . | . . . . . Data Cores Recovered . | . . . . . Used . | . . . . . Hacking Detections 6 | . 2 2 2 . Full Trace Events 3 | . 1 1 1 . Feedback Events . | . . . . . Feedback Blocked . | . . . . . Robot Schematics Acquired . | . . . . . Robots Built . | . . . . . Matter . | . . . . . Time . | . . . . . Total Robot Build Rating . | . . . . . Part Schematics Acquired 2 | . . 1 1 . Parts Built . | . . . . . Matter . | . . . . . Time . | . . . . . Total Part Build Rating . | . . . . . Parts Repaired 2 | . . 1 1 . Time 58 | . . 32 26 . Parts Recycled . | . . . . . Recycled Matter . | . . . . . Retrieved Matter . | . . . . . Retrieved Components 1 | . 1 . . . Parts Scanalyzed 3 | . . 2 1 . Part Schematics Acquired 2 | . . 1 1 . Parts Damaged . | . . . . . Bothacking | -11 -10 -9 -8 -7 ------------ Run | Scr Mat Mat Mat Fac Used RIF Installer . | . . . . . Robots Hacked . | . . . . . Non-combat . | . . . . . Combat . | . . . . . Robot Hacks Applied . | . . . . . Relay Couplers Released . | . . . . . Robots Rewired . | . . . . . Allies Hacked . | . . . . . Hacks Repelled . | . . . . . Allies | -11 -10 -9 -8 -7 -------- Run | Scr Mat Mat Mat Fac Total Allies . | . . . . . Largest Group . | . . . . . Highest-Rated Group . | . . . . . Highest-Rated Ally . | . . . . . Total Orders . | . . . . . Ally Attacks . | . . . . . Total Damage . | . . . . . Kills . | . . . . . Allies Corrupted . | . . . . . Allies Melted . | . . . . . Intel | -11 -10 -9 -8 -7 ------- Run | Scr Mat Mat Mat Fac Robot Analysis Total 1 | . . 1 . . Derelict Logs Recovered . | . . . . . Drone Launches . | . . . . . Drone Recoveries . | . . . . . Exploration | -11 -10 -9 -8 -7 ------------- Run | Scr Mat Mat Mat Fac Turns Passed 1678 | 126 211 440 549 352 Spaces Moved 813 | 68 137 193 265 150 Core 27 | 27 . . . . Treads . | . . . . . Legs 786 | 41 137 193 265 150 Wheels . | . . . . . Hover . | . . . . . Flight . | . . . . . Fastest Speed 50 | 50 120 150 150 150 Average Speed 141 | 98 120 150 150 155 Slowest Speed 180 | 150 120 150 150 180 Overloaded Moves . | . . . . . Propulsion Burnouts . | . . . . . Robots Hopped . | . . . . . Cave-ins Triggered . | . . . . . Exploration Rate (%) 19 | 3 33 24 28 7 Regions Visited 4 Branch Regions . Pre-discovered Areas . | . . . . . Known Exits Taken . | . . . . . Unknown Exits Taken 4 | 1 1 1 1 . Scrap Searched . | . . . . . Spaces Dug . | . . . . . Terrain Destroyed . | . . . . . Melee . | . . . . . Projectile . | . . . . . AOE . | . . . . . Actions | -11 -10 -9 -8 -7 --------- Run | Scr Mat Mat Mat Fac Total 1093 | 100 155 288 348 202 Wait 61 | . 1 33 27 . Move 809 | 67 136 192 264 150 Hop . | . . . . . Pick Up 38 | 9 4 12 7 6 Fast Attach . | . . . . . Attach 22 | 8 . 3 7 4 Detach . | . . . . . Swap 9 | . . 8 . 1 Drop 18 | 2 . 9 4 3 Fire 136 | 14 14 31 39 38 Melee . | . . . . . Ram . | . . . . . Kick . | . . . . . Crush . | . . . . . Escape Stasis . | . . . . . Rewire . | . . . . . Trap . | . . . . . Miscellaneous . | . . . . . Route ------- -11/Scrapyard -10/Materials -9/Materials -8/Materials -7/Factory History --------- Turn | Location | Event 6 | -11/Scrapyard | Discovered new exit (range 15) 127 | -11/Scrapyard | Entered Materials 318 | -10/Materials | Build established: Mutant 329 | -10/Materials | Discovered new exit (range 7) 338 | -10/Materials | Entered another Materials area 338 | -9/Materials | Evolved 2 slots: Utility x2 576 | -9/Materials | Destroyed 8 combat bots 658 | -9/Materials | Repaired Autogun 686 | -9/Materials | Discovered new exit (range 16) 778 | -9/Materials | Entered another Materials area 778 | -8/Materials | Evolved 2 slots: Utility x2 961 | -8/Materials | Build established: Scavenger-Skirmisher 970 | -8/Materials | Garrison activated, responded to threat 1223 | -8/Materials | Discovered new exit (range 15) 1301 | -8/Materials | Repaired Aluminum Leg 1327 | -8/Materials | Entered Factory 1327 | -7/Factory | Evolved 2 slots: Power x1, Propulsion x1 1577 | -7/Factory | Garrison activated, responded to threat 1612 | -7/Factory | Build established: Scavenger-Mutant 1636 | -7/Factory | Destroyed 7 combat bots 1679 | -7/Factory | Self-destructed Last Messages --------------- 01628_ Acquired 22 matter. 01629_ K-01 Serf collects debris. 01632_ K-01 Serf cleans the Terminal. 01633_ K-01 Serf collects debris. 01635_ Acquired 21 matter. 01636_ K-01 Serf collects debris. 01662_ K-01 Serf cleans the Fabricator. 01664_ Acquired Hcp. Storage Unit. 01666_ Dropped Lrg. Storage Unit. 01667_ Triggered Ambush Trap. 01667_ B-48 Gladiator emerges from a hatch in the floor. 01667_ S-27 Virus emerges from a hatch in the floor. 01670_ K-01 Serf cleans the Fabricator. 01674_ S-27 Virus destroyed. 01674_ Switching to secondary target: B-48 Gladiator. 01676_ Com. Matter Pod destroyed. 01676_ System corrupted by crushing effect (+2). 01676_ U-05 Engineer lays Concrete. 01676_ K-01 Serf cleans the Fabricator. 01678_ U-05 Engineer lays Concrete. Map ----- +----------------------------------------------------+ | ??????????????????????????????""" %%= %""""" | | ??????????????????????????? = | | ????????????????????????????" """ """ = | | ????????????????????????????" """ """ % * | | ???????????????????????????"" """ """ %% ]]]% | | ????????????????????????? % ]] | | ??????????????????????#????"" """ """ !!* ]] | | ??????????????????????# ? """ """ """ ######### | | ?????????????????????## """ """ """ #???????? | | ?????????????????????# #???????? | | ?????????????????????# """ """ """ #???????? | | ?????????????????????+ """ """ """ *#???????? | | ?????????????????????# """ """ """ | !#???????? | | ?????????????????????# != #???????? | | ?????????????????????# """ #???????? | | ??????????????####+### """ #???????? | | ??????????????# [[! """ #???????? | | ??????????????# [[! k #???????? | | ??????????????# [[! #???????? | | ??????????????# #???????? | | ??????????????# #???????? | | ??????????????# | #########???????? | | ???????????+### #???????????????? | | ?????????? k #???????????????? | | ?????????? !b! #???????????????? | | ?????????? !@u[ #???????????????? | | ?????????? r !b=u!! #???????????????? | | ?????????? r !! #???????????????? | | ???????????+########## ! #???????????????? | | ?????????????????????# #???????????????? | | ?????????????????????# k #??????????????? | | ?????????????????????+ "F"" #??????????????? | | ?????????????????????# """" +??????????????? | | ?????????????????????# # ?????????????? | | ?????????????????????# + ????????????? | | ?????????????????????# ########? ????????????? | | ?????????????????????# ??????????????????????? | | ?????????????????????# ??????????????????????????? | | ?????????????????????# ??????????????????????????? | | ?????????????????????#???????????????????????????? | | ?????????????????????????????????????????????????? | | ?????????????????????????????????????????????????? | | ?????????????????????????????????????????????????? | | ?????????????????????????????????????????????????? | | ?????????????????????????????????????????????????? | | ?????????????????????????????????????????????????? | | ?????????????????????????????????????????????????? | | ?????????????????????????????????????????????????? | | ?????????????????????????????????????????????????? | | ?????????????????????????????????????????????????? | +----------------------------------------------------+ Best States ------------- Heat Dissipation 34 Energy Generation 25 Energy Capacity 470 Matter Stores 367 Matter Capacity 450 Sight Range 16 Robot Scan Range 10 Terrain Scan Range 16 Terrain Scan Density 60 Additional Mass Support 6 Armor Coverage 150 Resistance: KI 20 Resistance: TH 20 Resistance: EX 20 Resistance: EM 20 Resistance: I 20 Resistance: S 20 Resistance: P 20 Evasion (%) 50 Kinecelleration 30 Offensive Hacking 10 Item Schematics ----------------- Structural Scanner | -9/Materials | Scanalyzed Transport Network Coupler | -8/Materials | Scanalyzed Robot Schematics ------------------ None Fabricated ------------ Nothing Alien Tech Used ----------------- None Achievements -------------- None Challenges ------------ None Game ------ Seed CoilSubatomicCasing Manual? 0 Play Time 00:19:00 Cumulative 122.3 hours Start 2020.07.25 @ 20:35:39 End 2020.07.25 @ 21:15:16 Sessions 1 Manual Loads 0 Difficulty Adventurer Special Mode None Game No. 51 Rogue 0 Adventurer 51 Explorer 0 Win Type - Total 1 Types 1/0/0/0/0/0/0 Lore% 21 Gallery% 50 Achievement% 34 Wizard Run 0 Options --------- ASCII 0 Keyboard 0 Movement Numpad Keybinds 0 Fullscreen 0 Font 12/Smallcaps Map View 83x54 Tactical HUD 1 Map Filters NONE Filters NONE Steam X RUN: 3d5c3734-fe85-4ba5-9a22-b3f239e69ab2